bitfinex-derivatives/quotes_ETHF0:USTF0_20260204
["timestamp","ask_amount","ask_price","bid_price","bid_amount"]
[1770248163777,0.00564497,2155.5,2154.5,15.66544967]
[1770248163977,0.00564497,2155.5,2154.7,7.0218458]
[1770248164176,0.464,2155.9,2154.9,7.0218458]
[1770248164678,0.40014177,2155.9,2154.9,7.0218458]
[1770248164976,0.40014177,2155.9,2154.8,7.0218458]
[1770248165171,0.40360514,2155.9,2154.9,11.5658204]
[1770248165480,0.40360514,2155.9,2155.0,4.54291084]
[1770248165677,0.40360514,2155.9,2155.0,7.0218458]
[1770248165972,7.84678833,2155.9,2154.8,4.09048423]
[1770248166179,7.84678833,2155.9,2154.9,4.54280579]
[1770248166374,7.84678833,2155.9,2154.8,4.09048423]
[1770248166577,7.84678833,2155.9,2154.9,4.54671142]
[1770248166779,7.84678833,2155.9,2154.7,4.09048423]
[1770248166974,7.84678833,2155.9,2154.8,4.54718367]
[1770248167170,7.44318319,2155.7,2154.6,4.09048423]
[1770248167478,7.67561319,2155.7,2154.5,4.09048423]
[1770248167681,7.44318319,2155.5,2154.6,4.54951286]
[1770248167878,7.44318319,2155.5,2154.4,4.09611487]
[1770248168078,7.44318319,2155.5,2154.5,4.54983184]
[1770248168378,7.67567319,2155.2,2154.2,4.09048423]
[1770248168579,7.67567319,2155.2,2154.3,4.55017604]
[1770248168880,7.67567319,2155.2,2154.1,4.09048423]
[1770248169180,7.67567319,2155.2,2154.2,4.55022011]
[1770248169375,7.67567319,2155.2,2154.2,7.02748127]
[1770248169679,7.44318319,2155.2,2154.2,7.02748127]
[1770248170279,7.44318319,2155.2,2154.2,0.00563547]
[1770248170480,7.44318319,2155.2,2154.2,7.02748127]
[1770248170679,7.44318319,2155.2,2154.3,4.54252763]
[1770248170873,7.44318319,2155.2,2154.2,7.02748127]
[1770248171677,7.44420822,2155.9,2154.2,7.02748127]
[1770248171678,7.44318319,2155.5,2154.4,7.0218458]
[1770248171873,7.44318319,2155.5,2154.6,7.0218458]
[1770248172073,7.44318319,2155.8,2154.6,7.0218458]
[1770248172276,0.40360514,2155.9,2155.0,7.0218458]
[1770248172479,7.84678833,2155.9,2154.8,4.09048423]
[1770248172677,7.84678833,2155.9,2154.9,4.54291714]
[1770248172977,8.07919833,2155.9,2154.6,4.09048423]
[1770248173178,8.07919833,2155.9,2154.7,4.54313073]
[1770248173481,8.07919833,2155.9,2154.5,4.09048423]
[1770248173783,8.07919833,2155.9,2154.7,7.0218458]
[1770248173980,7.84678833,2155.9,2154.8,4.54071734]
[1770248174284,0.40360514,2155.9,2155.0,7.0218458]
[1770248174482,7.84678833,2155.9,2155.0,7.0218458]
[1770248174682,7.84678833,2155.9,2154.8,4.09048423]
[1770248174880,7.84678833,2155.9,2154.7,4.09048423]
[1770248175080,7.84678833,2155.9,2154.8,4.54330486]
[1770248175382,7.84678833,2155.9,2154.7,4.09048423]
[1770248175675,7.84678833,2155.9,2154.8,4.54381766]
[1770248175881,7.84678833,2155.9,2154.7,4.09048423]
[1770248176073,7.84678833,2155.9,2154.8,4.54380959]
[1770248176278,7.84678833,2155.9,2154.7,11.11233003]
[1770248176477,7.84678833,2155.9,2154.8,4.54434783]
[1770248176679,7.84678833,2155.9,2154.9,4.5438842]
[1770248176880,0.40360514,2155.9,2154.9,7.2543558]
[1770248177384,7.84678833,2155.9,2154.9,7.2543558]
[1770248177784,7.84678833,2155.9,2154.7,4.09048423]
[1770248178085,7.44318319,2155.7,2154.8,4.54354434]
[1770248178279,7.44318319,2155.7,2154.6,4.09048423]
[1770248178484,7.44318319,2155.7,2154.7,4.54472908]
[1770248178784,7.44318319,2155.7,2154.7,7.0218458]
[1770248179084,7.44318319,2155.7,2154.8,4.54455605]
[1770248179288,7.44318319,2155.7,2154.7,7.0218458]
[1770248179480,7.44318319,2155.7,2154.6,4.09048423]
[1770248179680,7.44318319,2155.7,2154.7,4.54516827]
[1770248179979,7.44318319,2155.7,2154.5,5.59611532]
[1770248179980,7.67561319,2155.7,2154.5,4.09048423]
[1770248180185,7.67561319,2155.7,2154.2,6.94146948]
[1770248180186,7.67565319,2155.4,2154.2,0.00563547]
[1770248180784,7.44318319,2155.2,2154.2,0.00563547]
[1770248181379,7.44318319,2155.0,2154.2,0.00563547]
[1770248181678,7.90718319,2154.9,2154.2,0.00563547]
[1770248183187,7.44318319,2155.6,2154.2,6.88815975]
[1770248183387,7.44318319,2155.6,2154.3,7.25839038]
[1770248183579,7.44318319,2155.6,2154.3,2.71349998]
[1770248183885,7.44318319,2155.6,2154.6,0.23254]
[1770248184086,7.44318319,2155.6,2154.5,2.71349998]
[1770248184281,7.44318319,2155.6,2154.5,2.65362407]
[1770248184489,7.44318319,2155.6,2154.5,0.00398232]
[1770248184683,7.44318319,2155.6,2154.7,0.23253]
[1770248184885,0.00346337,2155.9,2155.0,0.2325]
[1770248185084,0.45502293,2156.0,2155.1,4.77519442]
[1770248185286,0.45502293,2156.0,2155.2,7.37488833]
[1770248186389,0.46059025,2156.0,2155.2,7.37488833]
[1770248187286,6.80819308,2156.9,2155.9,0.2324]
[1770248187287,7.30598518,2156.9,2155.9,0.2324]
[1770248187490,12.20994975,2157.6,2155.9,0.09307848]
[1770248187491,0.464,2157.5,2155.9,0.09307848]
[1770248187785,7.30598518,2156.9,2155.7,4.09048423]
[1770248187990,7.30598518,2156.9,2155.5,11.4514963]
[1770248188292,7.31011987,2156.9,2155.5,7.36101207]
[1770248188491,7.31011987,2156.9,2155.6,11.90186772]
[1770248188690,7.31011987,2156.9,2155.6,7.36101207]
[1770248189492,7.17079835,2156.9,2155.5,7.78718862]
[1770248189686,0.464,2157.5,2156.1,7.55473862]
[1770248189885,0.464,2157.5,2156.3,7.55473862]
[1770248190087,0.464,2157.5,2156.6,7.78706862]
[1770248190294,0.464,2157.5,2156.6,0.23233]
[1770248190494,0.464,2157.5,2156.6,0.09300848]
[1770248190694,0.464,2157.5,2156.6,7.6477471]
[1770248190895,0.46906903,2157.5,2156.6,7.65312466]
[1770248191698,7.77505421,2157.5,2156.6,0.09838604]
[1770248192496,0.46906903,2157.5,2156.6,7.69348146]
[1770248192695,7.77505421,2157.5,2156.6,7.69348146]
[1770248192899,7.31105421,2157.5,2156.6,7.69348146]
[1770248194195,7.30598518,2158.8,2157.0,8.66363542]
[1770248194396,7.30598518,2158.8,2157.5,7.59509542]
[1770248194598,7.30598518,2158.8,2157.5,7.82732542]
[1770248195301,7.30972331,2158.8,2157.5,7.82732542]
[1770248196297,7.30598518,2158.6,2156.9,7.82738542]
[1770248196497,7.30598518,2158.4,2156.9,7.82738542]
[1770248198003,7.30598518,2158.4,2157.1,7.59509542]
[1770248198202,7.30598518,2158.4,2157.1,7.82736542]
[1770248201104,7.30598518,2158.4,2157.3,7.59509542]
[1770248203001,7.30598518,2158.4,2157.3,7.82734542]
[1770248203407,7.30598518,2158.4,2157.3,0.23225]
[1770248204105,7.30598518,2158.4,2157.0,7.59509542]
[1770248204703,7.30598518,2158.4,2157.1,7.82736542]
[1770248208704,7.30598518,2158.4,2157.3,7.82734542]
[1770248208905,0.464,2158.5,2157.5,7.59509542]
[1770248209205,7.76998518,2158.5,2157.5,7.59509542]
[1770248210003,7.76998518,2158.5,2157.7,7.59509542]
[1770248211505,7.76998518,2158.5,2157.8,0.9268]
[1770248214605,0.00373813,2158.8,2158.2,7.5886919]
[1770248214808,7.24003239,2159.4,2158.5,7.5886919]
[1770248215005,7.24003239,2159.7,2158.8,7.8207819]
[1770248215204,7.24003239,2159.7,2158.5,7.5886919]
[1770248215812,7.24423062,2159.7,2158.5,7.5886919]
[1770248216206,7.24423062,2159.7,2158.5,7.8208219]
[1770248216704,0.00419823,2159.7,2158.7,7.8207919]
[1770248216907,0.00419823,2159.7,2158.9,7.5886919]
[1770248217309,0.00419823,2159.7,2159.0,0.23207]
[1770248217502,7.24003239,2160.3,2159.1,7.8207419]
[1770248217912,7.24003239,2160.3,2159.3,7.38127746]
[1770248218304,7.10071087,2161.3,2160.2,7.38127746]
[1770248218507,7.10551722,2161.3,2160.2,7.3863099]
[1770248218910,0.00480635,2161.3,2160.2,7.24698838]
[1770248219303,7.24483874,2161.3,2160.2,7.24698838]
[1770248219806,6.97923403,2161.9,2160.4,2.25267432]
[1770248220008,0.48693522,2162.6,2160.8,2.48454432]
[1770248220009,6.97923403,2162.5,2160.8,2.48454432]
[1770248220203,6.97923403,2162.5,2160.8,0.23187]
[1770248220602,6.97923403,2162.5,2160.8,1.29853]
[1770248220801,6.98429698,2162.5,2160.9,7.2686244]
[1770248221411,6.97923403,2161.9,2160.5,0.464]
[1770248221808,6.97923403,2161.8,2160.2,7.27365684]
[1770248222105,6.97923403,2161.6,2160.2,0.00503244]
[1770248222507,7.21107403,2161.2,2159.3,7.2686244]
[1770248222705,8.04579403,2161.0,2159.0,7.5006844]
[1770248222903,6.97923403,2160.8,2159.0,7.5006844]
[1770248223116,6.97923403,2160.6,2159.0,7.5006844]
[1770248223712,6.9153758,2160.6,2159.0,7.5006844]
[1770248224014,6.9153758,2160.6,2158.7,7.2686244]
[1770248224406,1.06687,2160.4,2158.7,7.2686244]
[1770248224611,2.48460432,2160.3,2158.7,0.00517784]
[1770248225815,6.97923403,2159.8,2158.7,0.00517784]
[1770248226009,6.97923403,2159.6,2157.8,8.4276244]
[1770248226410,6.97923403,2159.6,2158.2,7.2686244]
[1770248226708,6.97923403,2159.6,2158.6,7.2686244]
[1770248226907,6.97923403,2159.6,2158.6,0.00561263]
[1770248227108,6.97923403,2159.4,2157.8,0.9268]
[1770248227507,6.97923403,2159.4,2157.8,8.1954244]
[1770248228214,6.97923403,2159.4,2157.8,8.20041427]
[1770248228615,6.97923403,2159.4,2157.8,8.43260427]
[1770248229310,7.44223403,2159.7,2158.3,7.5007744]
[1770248229514,7.44223403,2159.7,2158.3,7.2686244]
[1770248229714,0.463,2159.7,2158.7,7.2686244]
[1770248230213,7.44223403,2159.7,2158.1,7.2686244]
[1770248230516,7.44223403,2159.7,2158.2,7.5007844]
[1770248231208,0.463,2159.7,2158.8,7.2686244]
[1770248231614,7.44223403,2159.7,2158.7,0.2321]
[1770248231817,7.44223403,2159.7,2158.5,7.2686244]
[1770248234217,7.44223403,2159.7,2158.5,7.5007444]
[1770248234417,0.463,2159.7,2158.5,7.5007444]
[1770248234715,0.463,2159.7,2158.7,7.2686244]
[1770248235511,0.463,2159.7,2158.9,7.5007044]
[1770248235712,0.45782216,2159.7,2159.1,7.2686244]
[1770248235911,7.44791588,2160.4,2159.1,7.5006844]
[1770248238214,7.44791588,2160.4,2159.1,0.23206]
[1770248238414,6.97923403,2159.8,2158.5,7.2686244]
[1770248238615,0.463,2159.7,2158.5,7.2686244]
[1770248238815,6.97923403,2159.6,2158.4,0.23213]
[1770248239115,6.97923403,2159.6,2158.7,0.2321]
[1770248239323,6.97923403,2159.6,2158.2,1.06793]
[1770248239324,0.463,2159.7,2158.9,7.5007044]
[1770248239522,0.463,2159.7,2158.9,0.23208]
[1770248240215,0.463,2159.7,2158.9,7.5007044]
[1770248240614,7.44223403,2159.7,2158.6,7.2686244]
[1770248241920,7.44223403,2159.7,2158.7,0.9264]
[1770248243023,7.44223403,2159.7,2158.3,5.9271444]
[1770248243424,7.44223403,2159.7,2158.5,0.23212]
[1770248243919,7.44415739,2159.5,2158.3,5.9271444]
[1770248244118,7.44415739,2159.3,2158.0,2.92813484]
[1770248244316,7.44415739,2159.3,2157.8,0.00498987]
[1770248244516,7.44415739,2158.9,2157.8,0.00498987]
[1770248244720,7.44415739,2158.7,2157.9,0.9266]
[1770248244920,7.44942348,2158.7,2157.9,0.9266]
[1770248245321,7.44942348,2158.7,2157.3,4.01803709]
[1770248245322,7.44415739,2158.5,2157.3,2.69595484]
[1770248245523,7.67628739,2158.5,2156.9,2.69595484]
[1770248245723,7.67628739,2158.5,2156.9,14.26825412]
[1770248246021,7.67628739,2158.5,2156.9,9.72422374]
[1770248246221,7.44415739,2158.5,2157.2,7.2605289]
[1770248246525,7.44415739,2158.5,2157.4,7.2605089]
[1770248247318,7.44415739,2158.5,2157.4,0.23224]
[1770248247522,7.44415739,2158.5,2157.4,7.21877163]
[1770248247716,7.44415739,2158.5,2157.5,7.28261986]
[1770248248027,0.463,2159.4,2158.2,7.28254986]
[1770248248226,0.463,2159.4,2158.4,7.04512377]
[1770248248526,0.463,2159.4,2158.6,7.27723377]
[1770248249129,7.91141396,2159.4,2158.2,7.27727377]
[1770248251427,7.91141396,2159.4,2158.3,7.08963921]
[1770248251624,7.91141396,2159.4,2158.2,2.69595484]
[1770248251931,7.91141396,2159.4,2157.8,7.3610163]
[1770248251932,8.00412244,2159.4,2157.8,7.3610163]
[1770248252229,8.00412244,2159.4,2158.0,7.1288163]
[1770248253328,8.00412244,2159.4,2157.9,0.23219]
[1770248254128,8.00412244,2159.4,2157.9,7.31478172]
[1770248254625,0.00425657,2159.4,2158.5,0.23212]
[1770248254924,0.00425657,2159.4,2158.1,7.08259172]
[1770248254925,7.90815739,2160.3,2159.2,0.23205]
[1770248255928,7.91259558,2160.3,2159.2,0.23626378]
[1770248257223,0.46843819,2160.3,2159.2,6.97960896]
[1770248257428,7.44415739,2160.9,2159.8,7.28793175]
[1770248257933,7.44415739,2160.9,2159.9,7.28792175]
[1770248258128,7.44415739,2160.9,2159.5,9.75190659]
[1770248258329,7.44415739,2160.9,2159.5,9.98392659]
[1770248258528,7.44415739,2160.9,2159.6,7.05595175]
[1770248258728,7.44766119,2160.9,2159.6,7.05595175]
[1770248258933,7.44766119,2160.9,2159.6,7.28796175]
[1770248261031,7.44766119,2160.9,2159.7,7.05933185]
[1770248261233,7.44766119,2160.9,2159.9,7.05933185]
[1770248262238,7.44766119,2160.9,2159.8,0.23198]
[1770248262426,7.44766119,2160.9,2159.3,2.92799484]
[1770248262632,7.44766119,2160.9,2159.3,0.23204]
[1770248262827,7.44415739,2160.5,2159.2,0.00421378]
[1770248263334,7.44415739,2160.5,2159.4,0.23202]
[1770248263526,7.44415739,2160.8,2159.5,7.26593563]
[1770248264734,7.44415739,2160.8,2159.5,0.23202]
[1770248264932,7.44415739,2160.8,2159.2,0.00421378]
[1770248265236,7.44415739,2160.3,2159.2,0.00421378]
[1770248265434,7.44415739,2160.1,2158.5,2.92807484]
[1770248265639,7.44415739,2159.6,2158.1,2.92812484]
[1770248265936,7.44415739,2159.6,2158.1,7.46991691]
[1770248266138,7.44415739,2159.6,2158.1,0.23217]
[1770248266440,0.232,2159.7,2158.1,0.23217]
[1770248266441,7.44415739,2159.3,2158.1,0.23217]
[1770248266739,7.44415739,2159.1,2158.1,0.23708621]
[1770248267130,7.44415739,2159.1,2158.1,0.00491621]
[1770248270037,7.44415739,2159.1,2158.1,7.25908298]
[1770248270641,0.463,2159.2,2158.3,7.25416677]
[1770248270839,7.44415739,2159.1,2158.1,0.00491621]
[1770248272237,7.44415739,2159.1,2158.1,7.27062901]
[1770248272441,7.44415739,2159.1,2158.1,0.00491621]
[1770248277347,7.44415739,2159.1,2157.5,14.24763084]
[1770248277547,7.44415739,2159.1,2157.5,10.22959375]
[1770248277749,7.44415739,2159.1,2157.5,0.23223]
[1770248277939,7.60906888,2158.7,2157.5,0.23223]
[1770248278445,7.60906888,2158.7,2157.5,0.23728621]
[1770248278846,7.60906888,2158.7,2157.5,7.60695008]
[1770248280446,7.60906888,2158.7,2157.5,0.00505621]
[1770248280647,7.05118791,2158.5,2157.5,0.00505621]
[1770248281243,7.05118791,2158.3,2157.5,0.00505621]
[1770248281945,0.464,2158.4,2157.5,7.45916884]
[1770248282144,7.51518791,2158.4,2157.5,0.23728621]
[1770248282344,7.51518791,2158.4,2156.9,4.48103709]
[1770248282345,7.97981639,2158.2,2156.6,2.69595484]
[1770248282540,0.23221,2157.8,2156.5,0.23233]
[1770248282745,0.23222,2157.7,2156.0,7.82774288]
[1770248282941,0.23222,2157.7,2156.1,7.82773288]
[1770248283144,0.23217,2158.2,2156.3,7.82771288]
[1770248283451,1.06814,2157.8,2156.3,0.00511156]
[1770248283749,0.23226,2157.3,2155.5,7.82779288]
[1770248283947,0.464,2157.2,2155.5,7.82779288]
[1770248284350,7.05118791,2157.1,2155.5,7.82779288]
[1770248284548,7.05118791,2157.1,2155.5,0.23588056]
[1770248284748,7.28346791,2157.1,2155.5,0.23588056]
[1770248286047,7.28346791,2157.1,2155.5,7.81804235]
[1770248286247,7.05118791,2156.9,2155.5,0.00344056]
[1770248286949,7.05118791,2156.9,2155.1,0.23249]
[1770248287151,7.05118791,2156.6,2154.9,7.58216179]
[1770248288053,7.0555146,2156.6,2154.9,7.58682491]
[1770248288753,7.0555146,2156.6,2155.1,8.66480288]
[1770248288948,7.0555146,2156.6,2155.4,7.59535288]
[1770248289148,7.0555146,2156.6,2154.9,0.00466312]
[1770248289348,7.05118791,2156.4,2154.9,0.00466312]
[1770248289550,7.05118791,2156.2,2154.9,0.00466312]
[1770248289852,7.05118791,2156.2,2154.9,7.600016]
[1770248290154,7.05118791,2156.2,2155.1,7.82784288]
[1770248291248,7.05118791,2156.2,2154.9,0.00466312]
[1770248292053,7.05118791,2156.2,2154.9,7.832526]
[1770248292450,0.00432669,2156.6,2155.1,7.59535288]
[1770248292658,7.0555146,2156.6,2155.6,0.23243]
[1770248292856,7.0555146,2156.6,2155.3,0.23247]
[1770248293656,7.0555146,2156.6,2155.3,0.16861177]
[1770248294547,7.0555146,2156.6,2155.4,7.22112482]
[1770248294752,7.0555146,2156.6,2155.3,7.38973659]
[1770248295549,0.00432669,2156.6,2155.5,6.93283743]
[1770248295748,0.00432669,2156.6,2156.0,0.23239]
[1770248296251,7.05118791,2156.9,2156.1,7.16521743]
[1770248296452,7.51518791,2157.2,2156.1,6.93283743]
[1770248296653,7.51518791,2157.2,2156.4,0.23235]
[1770248297956,7.51518791,2157.2,2156.2,6.87303379]
[1770248297957,0.464,2158.6,2157.1,7.61314379]
[1770248298157,0.464,2158.6,2157.1,0.23228]
[1770248298356,0.464,2158.6,2157.2,0.927]
[1770248298758,0.464,2158.6,2157.2,0.78767848]
[1770248299059,0.46985566,2158.6,2157.2,8.40468995]
[1770248299461,0.46985566,2158.6,2157.3,7.61311379]
[1770248299951,7.05118791,2158.5,2157.4,7.23714732]
[1770248300558,7.05118791,2158.5,2157.6,7.46936732]
[1770248301768,0.46985566,2158.6,2157.8,7.40016372]
[1770248302063,5.66e-06,2158.6,2158.0,7.40013372]
[1770248302565,5.66e-06,2158.6,2158.0,0.23217]
[1770248303263,7.05119357,2158.6,2157.5,0.23223]
[1770248303463,7.28331357,2158.6,2157.2,0.79156616]
[1770248305058,7.05119357,2158.6,2157.2,0.79156616]
[1770248305664,7.4157943,2158.4,2157.2,0.79156616]
[1770248305861,7.4157943,2158.2,2157.2,0.79156616]
[1770248306463,7.6479543,2158.2,2156.5,6.77830623]
[1770248306764,7.6479543,2158.2,2156.5,0.23234]
[1770248306960,7.27647278,2158.2,2156.8,7.00515103]
[1770248307165,5.66e-06,2158.6,2157.4,7.23739103]
[1770248307462,5.66e-06,2158.6,2157.6,7.23737103]
[1770248307663,5.66e-06,2158.6,2157.7,7.23736103]
[1770248307860,5.66e-06,2158.6,2157.9,0.23218]
[1770248308057,0.40014743,2159.0,2157.9,0.23218]
[1770248309065,7.4157943,2158.9,2157.9,0.23218]
[1770248310268,7.4157943,2158.9,2158.0,0.23218]
[1770248311069,0.40600424,2159.0,2158.1,7.23732103]
[1770248311268,0.40600424,2159.0,2158.3,0.23215]
[1770248311473,7.82179854,2159.0,2158.3,0.23215]
[1770248311662,0.40600424,2159.0,2158.3,0.23215]
[1770248312961,0.40600424,2159.0,2157.9,7.00515103]
[1770248313468,0.40600424,2159.0,2158.3,0.23215]
[1770248314172,7.82179854,2159.0,2158.3,0.23215]
[1770248315773,7.82179854,2159.0,2157.9,7.00515103]
[1770248315974,7.82179854,2159.0,2157.9,6.9412928]
[1770248316474,7.82179854,2159.0,2158.0,0.23218]
[1770248316670,7.82179854,2159.0,2158.1,0.23216]
[1770248316870,0.40600424,2159.0,2158.2,0.23216]
[1770248317375,7.82179854,2159.0,2158.2,0.23216]
[1770248317872,7.4157943,2159.7,2158.7,7.00515103]
[1770248318477,7.4157943,2159.7,2158.7,7.23725103]
[1770248318870,7.42019429,2159.7,2158.7,7.23725103]
[1770248319375,7.42019429,2159.7,2158.0,7.46915103]
[1770248319569,7.42019429,2159.7,2158.4,0.23213]
[1770248319772,7.42019429,2159.7,2158.0,7.46915103]
[1770248319974,7.4157943,2159.5,2158.0,0.69618]
[1770248320171,7.27647278,2159.5,2158.0,7.46915103]
[1770248320373,7.27647278,2159.5,2158.3,0.23214]
[1770248321480,0.23206,2159.2,2157.8,0.2322]
[1770248321680,0.69606,2159.1,2157.4,0.00365986]
[1770248321878,2.70969261,2159.1,2157.4,0.00365986]
[1770248322078,0.464,2159.0,2157.4,0.00365986]
[1770248322280,7.4157943,2158.7,2157.4,0.00365986]
[1770248322985,7.6479043,2158.7,2157.4,0.00365986]
[1770248326881,7.4157943,2158.7,2157.4,7.24105089]
[1770248327186,7.4157943,2158.7,2157.4,9.93700573]
[1770248327376,7.4157943,2158.7,2157.6,7.00515103]
[1770248327682,7.4157943,2158.7,2157.8,0.2322]
[1770248328681,7.4157943,2158.7,2157.4,2.9318547]
[1770248328886,7.4157943,2158.7,2157.5,4.56861544]
[1770248329085,7.4157943,2158.7,2157.4,2.9318547]
[1770248329280,7.4157943,2158.7,2157.5,4.56955968]
[1770248329481,7.4157943,2158.7,2157.5,2.69595484]
[1770248329785,7.4157943,2158.5,2157.5,2.69595484]
[1770248329982,7.4157943,2158.5,2157.6,4.56778702]
[1770248330284,7.4157943,2158.5,2157.5,2.92818484]
[1770248330583,7.6479243,2158.5,2157.4,2.6996147]
[1770248330781,7.6479243,2158.5,2157.4,0.00365986]
[1770248331281,7.4157943,2158.5,2157.4,0.00365986]
[1770248335280,7.11457989,2158.2,2157.4,0.00365986]
[1770248335486,7.11457989,2158.2,2156.8,2.92825484]
[1770248336387,7.11457989,2157.8,2156.8,0.00560487]
[1770248336685,7.11457989,2157.6,2156.8,0.00560487]
[1770248337483,7.11457989,2157.6,2156.4,2.92830484]
[1770248338283,7.11457989,2157.6,2156.9,0.2323]
[1770248338487,7.11457989,2157.6,2156.9,0.23774594]
[1770248340083,0.464,2157.7,2156.9,0.23774594]
[1770248340288,0.00587436,2157.8,2156.9,7.40918859]
[1770248340588,7.00936979,2157.8,2156.9,7.40918859]
[1770248340990,7.00936979,2157.8,2157.0,0.23229]
[1770248341786,7.00349543,2158.4,2157.5,0.23223]
[1770248342587,7.00349543,2158.7,2157.6,0.23222]
[1770248342782,7.00774914,2158.7,2157.6,0.16836177]
[1770248343184,7.00774914,2158.7,2157.7,0.23221]
[1770248343383,0.00425371,2158.7,2157.9,0.23219]
[1770248343589,0.00425371,2158.7,2157.9,2.92814484]
[1770248343789,0.00425371,2158.7,2158.0,7.06299729]
[1770248344290,7.00349543,2159.0,2157.9,2.92814484]
[1770248344291,7.00349543,2159.0,2158.1,7.06299729]
[1770248344492,7.00349543,2159.6,2158.5,7.29511729]
[1770248344889,0.464,2159.7,2158.9,7.29507729]
[1770248345092,7.00349543,2159.6,2158.9,0.23208]
[1770248345292,7.00802372,2159.6,2158.9,0.23208]
[1770248345496,7.00802372,2159.6,2158.9,0.23774062]
[1770248346500,7.00802372,2159.6,2158.9,0.00566062]
[1770248346690,7.00802372,2159.6,2158.2,2.69595484]
[1770248346894,7.00802372,2159.6,2158.2,4.55090859]
[1770248347388,6.8687022,2159.6,2158.3,0.23215]
[1770248347588,0.23203,2159.4,2158.3,0.0043323]
[1770248347786,0.23203,2159.4,2158.1,0.79121078]
[1770248348890,0.23203,2159.4,2158.1,0.7966095]
[1770248349394,7.00349543,2159.3,2158.1,0.7966095]
[1770248354198,7.00349543,2159.3,2158.1,1.0287795]
[1770248355703,7.00349543,2159.3,2158.3,0.23214]
[1770248356503,7.00349543,2159.3,2158.1,0.7966095]
[1770248357101,7.00349543,2158.7,2157.9,2.69595484]
[1770248357403,7.46749543,2158.7,2157.4,2.69595484]
[1770248357597,7.46749543,2158.7,2157.4,7.25427357]
[1770248357996,7.46749543,2158.7,2157.6,7.64432389]
[1770248358200,7.46749543,2158.7,2157.6,7.64795006]
[1770248362407,0.08517317,2159.6,2157.6,7.41573006]
[1770248362607,6.90747679,2161.4,2159.8,1.06715]
[1770248362809,16.89560768,2163.4,2160.8,2.24651258]
[1770248363106,2.13034,2163.9,2160.8,2.24651258]
[1770248363107,7.6514398,2164.5,2163.0,2.68568213]
[1770248363313,3.9304398,2164.4,2163.4,2.68193645]
[1770248363612,0.464,2165.6,2164.3,3.61611989]
[1770248363808,7.00349543,2166.4,2165.1,2.65722763]
[1770248364111,7.46793821,2166.1,2165.2,6.13725047]
[1770248364312,27.78960083,2165.8,2165.1,2.65722763]
[1770248364505,27.78960083,2164.9,2164.6,2.65722763]
[1770248364705,0.464,2165.6,2164.3,5.55248405]
[1770248364908,0.0216,2164.4,2164.1,5.32099405]
[1770248365108,0.0216,2165.5,2163.7,5.32099405]
[1770248365304,0.0216,2165.5,2163.6,5.32099405]
[1770248365505,0.42174177,2165.6,2163.6,6.38625405]
[1770248365709,21.14880745,2165.4,2163.7,5.32099405]
[1770248366105,0.42174177,2165.6,2163.9,0.23154]
[1770248366308,0.00388028,2165.8,2165.0,1.06456]
[1770248366506,7.68990277,2166.6,2165.6,1.06429]
[1770248366707,7.68990277,2166.6,2165.1,5.32099405]
[1770248366708,21.14880745,2166.4,2165.1,5.32099405]
[1770248366914,0.08264304,2166.6,2165.0,1.85261801]
[1770248366915,7.46793821,2166.3,2165.0,1.85261801]
[1770248367116,7.46793821,2166.3,2164.9,5.32099405]
[1770248367316,7.46793821,2166.3,2165.0,1.85261801]
[1770248367517,7.47188786,2166.3,2165.0,0.00386388]
[1770248367711,7.46793821,2166.0,2165.0,0.00386388]
[1770248367918,7.46793821,2165.9,2165.0,0.00386388]
[1770248368317,0.00394965,2166.3,2165.0,3.41809152]
[1770248368318,7.47188786,2166.3,2165.0,3.41809152]
[1770248368514,7.47188786,2166.3,2165.2,1.06449]
[1770248368715,0.00394965,2166.3,2165.2,2.34964764]
[1770248369214,7.47188786,2166.3,2165.1,0.23142]
[1770248369415,7.47188786,2166.3,2165.1,2.76969493]
[1770248369717,0.00394965,2166.3,2165.4,2.53827493]
[1770248370217,0.00394965,2166.3,2165.1,3.83420493]
[1770248370616,0.00394965,2166.3,2165.2,2.53827493]
[1770248370917,28.61674566,2166.2,2165.1,0.23142]
[1770248371118,7.46793821,2166.1,2165.0,0.00386388]
[1770248371418,28.61674566,2166.0,2165.0,0.00386388]
[1770248371815,28.61674566,2165.9,2165.0,0.00386388]
[1770248372009,7.46793821,2165.9,2165.0,0.00386388]
[1770248372213,7.46793821,2165.7,2165.0,0.00386388]
[1770248372420,7.46793821,2165.4,2164.4,3.23580598]
[1770248372911,28.61674566,2165.4,2164.4,0.463]
[1770248373111,7.46793821,2165.3,2164.4,0.463]
[1770248373311,7.454077,2165.2,2164.4,0.46698365]
[1770248373619,0.463,2165.3,2163.2,2.94410066]
[1770248373811,1.06449,2165.2,2163.1,0.463]
[1770248374012,0.23146,2164.8,2162.6,0.23168]
[1770248374317,21.14880745,2164.7,2162.6,0.23168]
[1770248374614,21.14880745,2164.3,2162.6,0.00353913]
[1770248374819,21.14880745,2164.1,2162.6,0.00353913]
[1770248375018,0.463,2164.2,2162.6,0.00353913]
[1770248375218,21.14880745,2164.1,2162.6,0.00353913]
[1770248375419,7.46793821,2164.0,2162.6,0.00353913]
[1770248375622,7.46793821,2163.8,2162.6,0.00353913]
[1770248376021,7.46793821,2163.7,2162.6,0.00353913]
[1770248376217,7.46793821,2163.3,2162.6,0.00353913]
[1770248377219,7.46793821,2163.0,2162.6,0.00353913]
[1770248377420,7.47324741,2163.0,2162.2,0.463]
[1770248377618,57.74185864,2162.9,2162.2,0.463]
[1770248378016,53.91231175,2162.9,2162.3,1.06591]
[1770248378324,7.46793821,2163.5,2162.9,0.06713879]
[1770248378725,28.78537586,2163.3,2162.9,0.06713879]
[1770248378918,7.63656841,2163.3,2162.9,0.06713879]
[1770248379121,21.14880745,2163.2,2162.9,0.06713879]
[1770248379326,28.7909633,2163.3,2162.9,0.07272878]
[1770248380727,28.71774536,2163.0,2162.2,0.463]
[1770248380922,7.56893791,2163.0,2162.2,0.463]
[1770248381319,7.57452535,2163.3,2162.2,0.69473]
[1770248381620,7.57452535,2163.3,2162.3,0.23172]
[1770248381821,7.57452535,2163.3,2162.3,0.23630804]
[1770248382523,7.57452535,2163.3,2162.3,0.00458804]
[1770248382723,7.57926267,2163.2,2162.2,1.06597]
[1770248382920,0.00558744,2163.3,2162.6,0.23168]
[1770248383227,3.241,2165.2,2162.7,0.23167]
[1770248383228,7.58205639,2164.1,2162.7,0.23167]
[1770248383523,7.55759096,2163.8,2162.7,0.23167]
[1770248383724,7.55759096,2163.8,2162.8,6.81363164]
[1770248384025,21.14880745,2163.6,2162.9,6.74977341]
[1770248384218,7.55759096,2163.6,2162.8,0.00478414]
[1770248384423,21.14880745,2163.2,2162.8,0.00478414]
[1770248384618,21.14880745,2163.4,2162.8,0.00478414]
[1770248384824,0.00413175,2163.8,2162.8,0.00478414]
[1770248385025,0.00413175,2163.8,2162.8,5.55743819]
[1770248385223,0.00413175,2163.8,2162.9,6.38661405]